[Event "*** SCC Grand Prix: Titled Tuesday Blitz"]
[Site "Chess.com"]
[Date "2020.07.21"]
[Round "7"]
[White "Sam_ChessMood"]
[Black "Yashasd1995"]
[Result "1-0"]
[WhiteElo "2794"]
[BlackElo "2546"]
[TimeControl "180+1"]
[EndTime "11:18:15 PDT"]
[Termination "Sam_ChessMood won by resignation"]

1. e4 {[%clk 0:03:00.9]} 1... d5 {[%clk 0:00:14.6]} 2. exd5 {[%clk 0:02:55.4]}
2... Nf6 {[%clk 0:00:14.5]} 3. Nf3 {[%clk 0:02:54.2]} 3... Nxd5 {[%clk
0:00:14.6]} 4. d4 {[%clk 0:02:54.2]} 4... g6 {[%clk 0:00:15.1]} 5. Be2 {[%clk
0:02:51.6]} 5... Bg7 {[%clk 0:00:15.4]} 6. O-O {[%clk 0:02:51.8]} 6... O-O
{[%clk 0:00:15.9]} 7. c4 {[%clk 0:02:13.3]} 7... Nb6 {[%clk 0:00:15.8]} 8. Nc3
{[%clk 0:02:13.6]} 8... Nc6 {[%clk 0:00:15.6]} 9. d5 {[%clk 0:01:56]} 9... Na5
{[%clk 0:00:14.7]} 10. c5 {[%clk 0:01:55.8]} 10... Nd7 {[%clk 0:00:14.5]} 11.
Be3 {[%clk 0:01:55.1]} 11... b6 {[%clk 0:00:14.3]} 12. c6 {[%clk 0:01:49.3]}
12... Ne5 {[%clk 0:00:12.6]} 13. Nxe5 {[%clk 0:01:46.8]} 13... Bxe5 {[%clk
0:00:13.5]} 14. Bd4 {[%clk 0:01:47.3]} 14... Bxd4 {[%clk 0:00:10.9]} 15. Qxd4
{[%clk 0:01:47.4]} 15... Nxc6 {[%clk 0:00:11.8]} 16. Qe3 {[%clk 0:01:26.8]}
16... Nb8 {[%clk 0:00:09]} 17. Rac1 {[%clk 0:01:21.5]} 17... Nd7 {[%clk
0:00:08.3]} 18. Nb5 {[%clk 0:01:15.5]} 18... Ba6 {[%clk 0:00:08.5]} 19. Nd4
{[%clk 0:00:49.3]} 19... Bxe2 {[%clk 0:00:07.2]} 20. Nc6 {[%clk 0:00:49.7]}
20... Qe8 {[%clk 0:00:05.9]} 21. Nxe7+ {[%clk 0:00:45.8]} 21... Kg7 {[%clk
0:00:05.5]} 22. Qxe2 {[%clk 0:00:46.3]} 22... Nf6 {[%clk 0:00:05.7]} 23. Rxc7
{[%clk 0:00:40.2]} 23... Nxd5 {[%clk 0:00:04.8]} 24. Qe5+ {[%clk 0:00:40.1]}
24... Nf6 {[%clk 0:00:05.7]} 25. g4 {[%clk 0:00:34.7]} 25... h6 {[%clk
0:00:05.1]} 26. h4 {[%clk 0:00:34.9]} 26... Qa4 {[%clk 0:00:04.4]} 27. f4 {[%clk
0:00:22.3]} 27... Qe4 {[%clk 0:00:03.6]} 28. g5 {[%clk 0:00:17.6]} 28... Qxe5
{[%clk 0:00:03.8]} 29. fxe5 {[%clk 0:00:17.5]} 29... Ne4 {[%clk 0:00:04.1]} 30.
Rf4 {[%clk 0:00:09.1]} 30... Nc5 {[%clk 0:00:03.7]} 31. Rf6 {[%clk 0:00:08.7]}
31... hxg5 {[%clk 0:00:03.5]} 32. hxg5 {[%clk 0:00:08.4]} 32... Rad8 {[%clk
0:00:03]} 33. Nxg6 {[%clk 0:00:07.8]} 33... Rd1+ {[%clk 0:00:02.4]} 34. Kf2
{[%clk 0:00:07.7]} 34... Ne4+ {[%clk 0:00:01.8]} 35. Ke2 {[%clk 0:00:08.2]}
35... Nxf6 {[%clk 0:00:02.7]} 36. gxf6+ {[%clk 0:00:06.9]} 36... Kxg6 {[%clk
0:00:03.6]} 37. Kxd1 {[%clk 0:00:07.4]} 37... Re8 {[%clk 0:00:04.3]} 38. Re7
{[%clk 0:00:07.2]} 38... Rd8+ {[%clk 0:00:03.7]} 39. Kc2 {[%clk 0:00:07.7]}
39... Rd5 {[%clk 0:00:04]} 40. Kc3 {[%clk 0:00:07.9]} 40... a5 {[%clk
0:00:03.4]} 41. Kc4 {[%clk 0:00:07.7]} 41... Rc5+ {[%clk 0:00:03.8]} 42. Kd4
{[%clk 0:00:08.3]} 42... Rb5 {[%clk 0:00:03]} 43. b3 {[%clk 0:00:08.4]} 43... a4
{[%clk 0:00:03.4]} 44. bxa4 {[%clk 0:00:08.7]} 44... Rb4+ {[%clk 0:00:03.8]} 45.
Kc3 {[%clk 0:00:07]} 45... Rxa4 {[%clk 0:00:04.7]} 46. Kb3 {[%clk 0:00:07.5]}
46... Rd4 {[%clk 0:00:04.7]} 47. Rb7 {[%clk 0:00:06.9]} 47... Rd5 {[%clk
0:00:05]} 48. Rxb6 {[%clk 0:00:07.3]} 48... Rxe5 {[%clk 0:00:05.4]} 49. a4
{[%clk 0:00:07.7]} 49... Re6 {[%clk 0:00:06]} 50. Rxe6 {[%clk 0:00:07.3]} 50...
fxe6 {[%clk 0:00:05.9]} 51. a5 {[%clk 0:00:07.9]} 51... Kxf6 {[%clk 0:00:06.8]}
52. a6 {[%clk 0:00:08.3]} 52... e5 {[%clk 0:00:07.7]} 53. a7 {[%clk 0:00:08.7]}
53... e4 {[%clk 0:00:08.6]} 54. a8=Q {[%clk 0:00:08.9]} 1-0

[Event "*** SCC Grand Prix: Titled Tuesday Blitz"]
[Site "Chess.com"]
[Date "2020.07.21"]
[Round "7"]
[White "mattcolins2025"]
[Black "VladaSviridova"]
[Result "1-0"]
[WhiteElo "2396"]
[BlackElo "2122"]
[TimeControl "180+1"]
[EndTime "11:18:16 PDT"]
[Termination "mattcolins2025 won by checkmate"]

1. d4 {[%clk 0:03:00.9]} 1... d5 {[%clk 0:02:59.6]} 2. c4 {[%clk 0:03:01.4]}
2... c6 {[%clk 0:02:59.8]} 3. Nc3 {[%clk 0:03:02.1]} 3... Nf6 {[%clk 0:03:00]}
4. Nf3 {[%clk 0:03:02.8]} 4... dxc4 {[%clk 0:02:59.5]} 5. a4 {[%clk 0:03:03.4]}
5... Bf5 {[%clk 0:02:58.1]} 6. Ne5 {[%clk 0:03:03.2]} 6... Nbd7 {[%clk
0:02:58.3]} 7. Nxc4 {[%clk 0:03:03.3]} 7... Qc7 {[%clk 0:02:58.7]} 8. f3 {[%clk
0:03:02.9]} 8... e5 {[%clk 0:02:57.8]} 9. e4 {[%clk 0:03:02.4]} 9... exd4 {[%clk
0:02:55.4]} 10. Qxd4 {[%clk 0:03:00.9]} 10... Be6 {[%clk 0:02:55.3]} 11. Be3
{[%clk 0:03:00.1]} 11... Bc5 {[%clk 0:02:54.5]} 12. Qd2 {[%clk 0:02:59.9]} 12...
O-O {[%clk 0:02:47.3]} 13. Bf4 {[%clk 0:02:58.4]} 13... Qc8 {[%clk 0:02:34.1]}
14. Nd6 {[%clk 0:02:54]} 14... Bxd6 {[%clk 0:02:29.2]} 15. Bxd6 {[%clk
0:02:53.2]} 15... Rd8 {[%clk 0:02:28.3]} 16. Be7 {[%clk 0:02:45.4]} 16... Re8
{[%clk 0:02:28.4]} 17. Ba3 {[%clk 0:02:40.7]} 17... Ne5 {[%clk 0:02:16.1]} 18.
Be2 {[%clk 0:02:36.9]} 18... Rd8 {[%clk 0:02:04.2]} 19. Qf4 {[%clk 0:02:30.4]}
19... Nd3+ {[%clk 0:01:59.3]} 20. Bxd3 {[%clk 0:02:29.1]} 20... Rxd3 {[%clk
0:01:59.1]} 21. O-O {[%clk 0:02:28.7]} 21... Bb3 {[%clk 0:01:44.5]} 22. Be7
{[%clk 0:02:07.5]} 22... Ne8 {[%clk 0:01:19.7]} 23. Ra3 {[%clk 0:02:05.6]} 23...
Qe6 {[%clk 0:01:18.8]} 24. Bh4 {[%clk 0:01:59.9]} 24... Bc4 {[%clk 0:00:57.2]}
25. Re1 {[%clk 0:01:49.5]} 25... Qd6 {[%clk 0:00:50.5]} 26. e5 {[%clk
0:01:43.9]} 26... Qd4+ {[%clk 0:00:44.5]} 27. Qxd4 {[%clk 0:01:42.8]} 27... Rxd4
{[%clk 0:00:44.8]} 28. Bf2 {[%clk 0:01:43]} 28... Rd3 {[%clk 0:00:40.3]} 29. Nb1
{[%clk 0:01:37.8]} 29... Rxa3 {[%clk 0:00:38.4]} 30. Nxa3 {[%clk 0:01:38.7]}
30... Bb3 {[%clk 0:00:37.7]} 31. a5 {[%clk 0:01:35.9]} 31... Nc7 {[%clk
0:00:30.7]} 32. Re3 {[%clk 0:01:33.5]} 32... Be6 {[%clk 0:00:28.4]} 33. Rd3
{[%clk 0:01:31]} 33... Nd5 {[%clk 0:00:27.6]} 34. g3 {[%clk 0:01:26.8]} 34... b6
{[%clk 0:00:25.4]} 35. Rd1 {[%clk 0:01:16.3]} 35... bxa5 {[%clk 0:00:24.5]} 36.
Nc4 {[%clk 0:01:15.7]} 36... a4 {[%clk 0:00:23.6]} 37. Ra1 {[%clk 0:01:08.3]}
37... Nb6 {[%clk 0:00:22.5]} 38. Nxb6 {[%clk 0:01:05.2]} 38... axb6 {[%clk
0:00:22.7]} 39. Bxb6 {[%clk 0:01:06.1]} 39... Rb8 {[%clk 0:00:22.7]} 40. Bd4
{[%clk 0:01:06]} 40... Kf8 {[%clk 0:00:20.8]} 41. Rxa4 {[%clk 0:01:05.6]} 41...
Bd5 {[%clk 0:00:19.1]} 42. f4 {[%clk 0:01:02.4]} 42... g6 {[%clk 0:00:17.8]} 43.
Kf2 {[%clk 0:00:59.5]} 43... Ke7 {[%clk 0:00:17.6]} 44. g4 {[%clk 0:00:51.8]}
44... h5 {[%clk 0:00:17]} 45. h3 {[%clk 0:00:50.8]} 45... hxg4 {[%clk
0:00:17.2]} 46. hxg4 {[%clk 0:00:51.7]} 46... Rh8 {[%clk 0:00:17.1]} 47. f5
{[%clk 0:00:43.3]} 47... Rh2+ {[%clk 0:00:15.7]} 48. Kg3 {[%clk 0:00:40]} 48...
Rg2+ {[%clk 0:00:16]} 49. Kf4 {[%clk 0:00:38.9]} 49... gxf5 {[%clk 0:00:16.1]}
50. gxf5 {[%clk 0:00:38.5]} 50... Kd7 {[%clk 0:00:16.3]} 51. Ra7+ {[%clk
0:00:38.2]} 51... Kc8 {[%clk 0:00:15.3]} 52. e6 {[%clk 0:00:33.7]} 52... fxe6
{[%clk 0:00:14.9]} 53. f6 {[%clk 0:00:34.3]} 53... e5+ {[%clk 0:00:13.6]} 54.
Kxe5 {[%clk 0:00:34.6]} 54... Re2+ {[%clk 0:00:13.3]} 55. Kd6 {[%clk 0:00:32.7]}
55... Re6+ {[%clk 0:00:12.6]} 56. Kc5 {[%clk 0:00:33]} 56... Re1 {[%clk
0:00:10.3]} 57. f7 {[%clk 0:00:30.9]} 57... Bxf7 {[%clk 0:00:08.9]} 58. Rxf7
{[%clk 0:00:30.5]} 58... Rc1+ {[%clk 0:00:08.9]} 59. Kd6 {[%clk 0:00:29.7]}
59... Rd1 {[%clk 0:00:08.4]} 60. Kxc6 {[%clk 0:00:27.5]} 60... Kd8 {[%clk
0:00:06.7]} 61. Bc5 {[%clk 0:00:25.8]} 61... Rb1 {[%clk 0:00:05.9]} 62. Rf8#
{[%clk 0:00:25.6]} 1-0

[Event "*** SCC Grand Prix: Titled Tuesday Blitz"]
[Site "Chess.com"]
[Date "2020.07.21"]
[Round "7"]
[White "LedakovAlexandr"]
[Black "viniciusrego"]
[Result "1-0"]
[WhiteElo "2488"]
[BlackElo "2267"]
[TimeControl "180+1"]
[EndTime "11:18:18 PDT"]
[Termination "LedakovAlexandr won by checkmate"]

1. d4 {[%clk 0:02:57.5]} 1... Nf6 {[%clk 0:02:51.1]} 2. Nf3 {[%clk 0:02:56.7]}
2... g6 {[%clk 0:02:50.9]} 3. Nc3 {[%clk 0:02:56.7]} 3... Bg7 {[%clk 0:02:44.9]}
4. e4 {[%clk 0:02:55.4]} 4... d6 {[%clk 0:02:41.8]} 5. Be2 {[%clk 0:02:53.5]}
5... O-O {[%clk 0:02:37.4]} 6. O-O {[%clk 0:02:52.7]} 6... c5 {[%clk 0:02:35.5]}
7. d5 {[%clk 0:02:45.1]} 7... e5 {[%clk 0:02:26.9]} 8. Nd2 {[%clk 0:02:40.6]}
8... Ne8 {[%clk 0:02:23.5]} 9. Nc4 {[%clk 0:02:39.4]} 9... f5 {[%clk 0:02:19.6]}
10. f4 {[%clk 0:02:39]} 10... Nd7 {[%clk 0:02:15.7]} 11. exf5 {[%clk 0:02:33.5]}
11... gxf5 {[%clk 0:02:09.7]} 12. fxe5 {[%clk 0:02:32.8]} 12... Nxe5 {[%clk
0:02:06.4]} 13. Bf4 {[%clk 0:02:24.4]} 13... Nxc4 {[%clk 0:01:56.5]} 14. Bxc4
{[%clk 0:02:25.3]} 14... Bd4+ {[%clk 0:01:56.8]} 15. Kh1 {[%clk 0:02:24.4]}
15... Qf6 {[%clk 0:01:53.7]} 16. Rf3 {[%clk 0:02:17.1]} 16... Kh8 {[%clk
0:01:48.2]} 17. a4 {[%clk 0:02:14]} 17... a6 {[%clk 0:01:41.7]} 18. a5 {[%clk
0:02:13.7]} 18... Ng7 {[%clk 0:01:40.9]} 19. Rh3 {[%clk 0:02:06.1]} 19... Bd7
{[%clk 0:01:28.3]} 20. Rh6 {[%clk 0:02:04.3]} 20... Qf7 {[%clk 0:01:15.1]} 21.
Bxd6 {[%clk 0:01:56.6]} 21... Rg8 {[%clk 0:01:14.5]} 22. Ne2 {[%clk 0:01:47.9]}
22... Bxb2 {[%clk 0:01:12.4]} 23. Rb1 {[%clk 0:01:43.3]} 23... Bf6 {[%clk
0:01:04.6]} 24. Rxf6 {[%clk 0:01:38.1]} 24... Qxf6 {[%clk 0:01:03.9]} 25. Bxc5
{[%clk 0:01:39]} 25... Bb5 {[%clk 0:00:37.4]} 26. Bd4 {[%clk 0:01:26.5]} 26...
Qd6 {[%clk 0:00:32.5]} 27. Bxb5 {[%clk 0:01:22.6]} 27... axb5 {[%clk 0:00:33]}
28. Rxb5 {[%clk 0:01:23.2]} 28... Qa3 {[%clk 0:00:27.7]} 29. Nf4 {[%clk
0:01:08.7]} 29... Rxa5 {[%clk 0:00:24.6]} 30. Rxb7 {[%clk 0:01:08.2]} 30... Qa4
{[%clk 0:00:15.1]} 31. Ne6 {[%clk 0:00:35.3]} 31... Rxd5 {[%clk 0:00:07.2]} 32.
Rxg7 {[%clk 0:00:22.4]} 32... Rxg7 {[%clk 0:00:04.3]} 33. Bxg7+ {[%clk
0:00:15.8]} 33... Kg8 {[%clk 0:00:04.7]} 34. Qxd5 {[%clk 0:00:15.6]} 34... Qxc2
{[%clk 0:00:01.1]} 35. Qd8+ {[%clk 0:00:08.8]} 35... Kf7 {[%clk 0:00:01.3]} 36.
Qf6+ {[%clk 0:00:08.8]} 36... Ke8 {[%clk 0:00:01.1]} 37. h4 {[%clk 0:00:06]}
37... Kd7 {[%clk 0:00:02]} 38. Qe5 {[%clk 0:00:03.6]} 38... Qd1+ {[%clk
0:00:02.9]} 39. Kh2 {[%clk 0:00:03.6]} 39... Qe2 {[%clk 0:00:03.2]} 40. Qxe2
{[%clk 0:00:02.8]} 40... f4 {[%clk 0:00:03.7]} 41. Bf6 {[%clk 0:00:03.4]} 41...
f3 {[%clk 0:00:04.6]} 42. Qxf3 {[%clk 0:00:03.9]} 42... Kxe6 {[%clk 0:00:04.9]}
43. Bg5 {[%clk 0:00:04.8]} 43... Ke5 {[%clk 0:00:04.3]} 44. Qf6+ {[%clk
0:00:05.7]} 44... Ke4 {[%clk 0:00:04.4]} 45. Qh6 {[%clk 0:00:06.6]} 45... Kd3
{[%clk 0:00:05.3]} 46. Qxh7+ {[%clk 0:00:06.9]} 46... Ke2 {[%clk 0:00:06.2]} 47.
Qf5 {[%clk 0:00:07.3]} 47... Ke1 {[%clk 0:00:06.3]} 48. h5 {[%clk 0:00:07.6]}
48... Ke2 {[%clk 0:00:07.2]} 49. Qc2+ {[%clk 0:00:07.3]} 49... Ke1 {[%clk
0:00:06.7]} 50. Qd2+ {[%clk 0:00:06.8]} 50... Kf1 {[%clk 0:00:07.6]} 51. Qb2
{[%clk 0:00:06.4]} 51... Ke1 {[%clk 0:00:06.2]} 52. Be3 {[%clk 0:00:06.9]} 52...
Kd1 {[%clk 0:00:07.1]} 53. Qd2# {[%clk 0:00:06.8]} 1-0

[Event "*** SCC Grand Prix: Titled Tuesday Blitz"]
[Site "Chess.com"]
[Date "2020.07.21"]
[Round "7"]
[White "FabianoCaruana"]
[Black "Micki-taryan"]
[Result "1/2-1/2"]
[WhiteElo "3057"]
[BlackElo "3045"]
[TimeControl "180+1"]
[EndTime "11:18:23 PDT"]
[Termination "Game drawn - insufficient material"]

1. e4 {[%clk 0:03:00.9]} 1... e5 {[%clk 0:02:58.1]} 2. Nf3 {[%clk 0:03:01.1]}
2... Nc6 {[%clk 0:02:58.7]} 3. Bb5 {[%clk 0:03:01.6]} 3... Nf6 {[%clk
0:02:58.6]} 4. d3 {[%clk 0:03:02.1]} 4... Bc5 {[%clk 0:02:58.4]} 5. Bxc6 {[%clk
0:03:02.5]} 5... dxc6 {[%clk 0:02:59.3]} 6. Nbd2 {[%clk 0:03:02.5]} 6... Nd7
{[%clk 0:02:58.8]} 7. Nc4 {[%clk 0:03:02.4]} 7... O-O {[%clk 0:02:57.9]} 8. O-O
{[%clk 0:03:01.4]} 8... Bd6 {[%clk 0:02:57.4]} 9. Kh1 {[%clk 0:03:01.1]} 9... c5
{[%clk 0:02:57.3]} 10. Ng1 {[%clk 0:03:00.7]} 10... Nb8 {[%clk 0:02:54.5]} 11.
Ne2 {[%clk 0:03:00.3]} 11... Nc6 {[%clk 0:02:54.5]} 12. f4 {[%clk 0:02:59.6]}
12... Bg4 {[%clk 0:02:47.9]} 13. c3 {[%clk 0:02:36.4]} 13... f5 {[%clk
0:02:33.8]} 14. exf5 {[%clk 0:02:17]} 14... Rxf5 {[%clk 0:02:23.8]} 15. Qe1
{[%clk 0:01:50.6]} 15... exf4 {[%clk 0:02:08.3]} 16. Nxf4 {[%clk 0:01:46.4]}
16... Bxf4 {[%clk 0:01:39.5]} 17. Bxf4 {[%clk 0:01:45.1]} 17... Rf7 {[%clk
0:01:35.8]} 18. Qe3 {[%clk 0:01:31.7]} 18... Qd5 {[%clk 0:01:32.1]} 19. Bg3
{[%clk 0:01:15.9]} 19... b6 {[%clk 0:01:02]} 20. Rxf7 {[%clk 0:01:11.2]} 20...
Qxf7 {[%clk 0:01:02.9]} 21. Qe4 {[%clk 0:01:03.6]} 21... Rf8 {[%clk 0:00:58]}
22. h3 {[%clk 0:01:00.7]} 22... Bd7 {[%clk 0:00:57.6]} 23. Bxc7 {[%clk 0:00:56]}
23... h6 {[%clk 0:00:54.5]} 24. Bg3 {[%clk 0:00:51.4]} 24... Re8 {[%clk
0:00:51]} 25. Qf4 {[%clk 0:00:31.5]} 25... Qxf4 {[%clk 0:00:44.3]} 26. Bxf4
{[%clk 0:00:32.4]} 26... Re2 {[%clk 0:00:44.9]} 27. Kg1 {[%clk 0:00:23.8]} 27...
Be6 {[%clk 0:00:42.8]} 28. Kf1 {[%clk 0:00:22.1]} 28... Rc2 {[%clk 0:00:42.4]}
29. Rc1 {[%clk 0:00:16.5]} 29... Bxc4 {[%clk 0:00:36.7]} 30. Rxc2 {[%clk
0:00:16.7]} 30... Bxd3+ {[%clk 0:00:37.2]} 31. Re2 {[%clk 0:00:17.3]} 31... Kf7
{[%clk 0:00:36.6]} 32. Kf2 {[%clk 0:00:17.7]} 32... Bxe2 {[%clk 0:00:35.2]} 33.
Kxe2 {[%clk 0:00:18.6]} 33... Ke6 {[%clk 0:00:35.6]} 34. Kd3 {[%clk 0:00:19.2]}
34... Kd5 {[%clk 0:00:27.6]} 35. c4+ {[%clk 0:00:19.5]} 35... Ke6 {[%clk
0:00:27.9]} 36. Ke4 {[%clk 0:00:19.8]} 36... h5 {[%clk 0:00:28.2]} 37. Bd2
{[%clk 0:00:19.4]} 37... g6 {[%clk 0:00:28.1]} 38. Bc3 {[%clk 0:00:19.7]} 38...
Ne7 {[%clk 0:00:28.3]} 39. Kf4 {[%clk 0:00:18.2]} 39... Nf5 {[%clk 0:00:26.5]}
40. g4 {[%clk 0:00:18.5]} 40... hxg4 {[%clk 0:00:27.4]} 41. hxg4 {[%clk
0:00:19.4]} 41... Nd6 {[%clk 0:00:27.3]} 42. b3 {[%clk 0:00:19.8]} 42... Nf7
{[%clk 0:00:27.8]} 43. a3 {[%clk 0:00:18.5]} 43... Kd6 {[%clk 0:00:27.7]} 44.
Bd2 {[%clk 0:00:16.5]} 44... Ke6 {[%clk 0:00:26.4]} 45. Be3 {[%clk 0:00:16.9]}
45... Ne5 {[%clk 0:00:24.7]} 46. Kg5 {[%clk 0:00:12.2]} 46... Kf7 {[%clk
0:00:24.3]} 47. Bf4 {[%clk 0:00:11.8]} 47... Nf3+ {[%clk 0:00:22.5]} 48. Kh6
{[%clk 0:00:11.6]} 48... Nd4 {[%clk 0:00:22.3]} 49. b4 {[%clk 0:00:11]} 49...
cxb4 {[%clk 0:00:19.4]} 50. axb4 {[%clk 0:00:11.9]} 50... Nc6 {[%clk 0:00:18.2]}
51. Bd6 {[%clk 0:00:10.9]} 51... a6 {[%clk 0:00:15]} 52. b5 {[%clk 0:00:09.7]}
52... axb5 {[%clk 0:00:15.9]} 53. cxb5 {[%clk 0:00:10.5]} 53... Nd4 {[%clk
0:00:16.3]} 54. Bc7 {[%clk 0:00:10.7]} 54... Nxb5 {[%clk 0:00:16.3]} 55. Bxb6
{[%clk 0:00:11.3]} 55... Nd6 {[%clk 0:00:16.8]} 56. Kg5 {[%clk 0:00:11.5]} 56...
Nc4 {[%clk 0:00:16.5]} 57. Bd4 {[%clk 0:00:11.3]} 57... Na5 {[%clk 0:00:16.6]}
58. Kf4 {[%clk 0:00:11.5]} 58... Nc6 {[%clk 0:00:17.5]} 59. Be3 {[%clk
0:00:12.3]} 59... Ne7 {[%clk 0:00:17.6]} 60. Ke4 {[%clk 0:00:13.2]} 60... Ke6
{[%clk 0:00:16.7]} 61. Bf4 {[%clk 0:00:13.1]} 61... Nd5 {[%clk 0:00:17.5]} 62.
Be3 {[%clk 0:00:13.2]} 62... Nf6+ {[%clk 0:00:17.8]} 63. Kf3 {[%clk 0:00:13.5]}
63... Nxg4 {[%clk 0:00:17.6]} 64. Kxg4 {[%clk 0:00:13.4]} 64... g5 {[%clk
0:00:18.1]} 65. Kxg5 {[%clk 0:00:13.7]} 1/2-1/2

[Event "*** SCC Grand Prix: Titled Tuesday Blitz"]
[Site "Chess.com"]
[Date "2020.07.21"]
[Round "7"]
[White "Oglob71"]
[Black "Xeniya2005"]
[Result "1-0"]
[WhiteElo "2521"]
[BlackElo "2383"]
[TimeControl "180+1"]
[EndTime "11:18:23 PDT"]
[Termination "Oglob71 won by checkmate"]

1. d4 {[%clk 0:03:00.9]} 1... Nf6 {[%clk 0:02:59.5]} 2. Nf3 {[%clk 0:03:00.3]}
2... b6 {[%clk 0:02:56.4]} 3. c4 {[%clk 0:03:01.2]} 3... Bb7 {[%clk 0:02:55.4]}
4. e3 {[%clk 0:03:01.2]} 4... e6 {[%clk 0:02:53.9]} 5. Bd3 {[%clk 0:02:56]} 5...
d5 {[%clk 0:02:53.6]} 6. O-O {[%clk 0:02:55.8]} 6... Be7 {[%clk 0:02:51.4]} 7.
b3 {[%clk 0:02:55.4]} 7... O-O {[%clk 0:02:50.1]} 8. Bb2 {[%clk 0:02:55.7]} 8...
Nbd7 {[%clk 0:02:46.5]} 9. Nc3 {[%clk 0:02:54.5]} 9... c5 {[%clk 0:02:41.8]} 10.
cxd5 {[%clk 0:02:54.6]} 10... Nxd5 {[%clk 0:02:38.3]} 11. Qb1 {[%clk 0:02:46.7]}
11... h6 {[%clk 0:02:36.7]} 12. Rd1 {[%clk 0:02:38.6]} 12... Nxc3 {[%clk
0:02:36.2]} 13. Bxc3 {[%clk 0:02:38.1]} 13... Bxf3 {[%clk 0:02:34.7]} 14. gxf3
{[%clk 0:02:38.4]} 14... Qc7 {[%clk 0:02:32.1]} 15. Qb2 {[%clk 0:02:33]} 15...
Rac8 {[%clk 0:02:26.5]} 16. Rac1 {[%clk 0:02:31.3]} 16... Nf6 {[%clk 0:02:13.6]}
17. Ba6 {[%clk 0:02:25.5]} 17... Rcd8 {[%clk 0:02:10.2]} 18. dxc5 {[%clk
0:02:24.5]} 18... bxc5 {[%clk 0:02:07.4]} 19. Be5 {[%clk 0:02:22.7]} 19... Qc6
{[%clk 0:02:06.4]} 20. Be2 {[%clk 0:02:21.6]} 20... Qb7 {[%clk 0:01:42.2]} 21.
Qc2 {[%clk 0:02:02.4]} 21... Nd5 {[%clk 0:01:37.6]} 22. Qe4 {[%clk 0:02:01.3]}
22... f6 {[%clk 0:01:26.8]} 23. Bg3 {[%clk 0:01:58.3]} 23... Kf7 {[%clk
0:01:25.7]} 24. Bc4 {[%clk 0:01:57]} 24... Rfe8 {[%clk 0:01:24.2]} 25. Qh4
{[%clk 0:01:44.2]} 25... g5 {[%clk 0:01:12.4]} 26. Qh3 {[%clk 0:01:37]} 26...
Rh8 {[%clk 0:01:08.8]} 27. e4 {[%clk 0:01:37]} 27... f5 {[%clk 0:00:40]} 28.
exd5 {[%clk 0:01:34.4]} 28... h5 {[%clk 0:00:39.6]} 29. dxe6+ {[%clk 0:01:33.6]}
29... Kg6 {[%clk 0:00:39.4]} 30. Be5 {[%clk 0:01:05.4]} 30... Rhe8 {[%clk
0:00:32.9]} 31. Qg2 {[%clk 0:00:54.8]} 31... Qb6 {[%clk 0:00:25.5]} 32. f4
{[%clk 0:00:50.8]} 32... g4 {[%clk 0:00:25.1]} 33. Rd7 {[%clk 0:00:48.8]} 33...
Qa5 {[%clk 0:00:18.7]} 34. Qd5 {[%clk 0:00:42.4]} 34... Qxa2 {[%clk 0:00:17.8]}
35. Rd1 {[%clk 0:00:36.4]} 35... Qa5 {[%clk 0:00:15.9]} 36. Qd2 {[%clk
0:00:34.7]} 36... Qa3 {[%clk 0:00:14.2]} 37. Qb2 {[%clk 0:00:33.1]} 37... Qa5
{[%clk 0:00:13.8]} 38. Rxd8 {[%clk 0:00:31.5]} 38... Rxd8 {[%clk 0:00:13.4]} 39.
Rxd8 {[%clk 0:00:30.7]} 39... Qxd8 {[%clk 0:00:14.2]} 40. Qc2 {[%clk 0:00:28.6]}
40... h4 {[%clk 0:00:13.5]} 41. Bd3 {[%clk 0:00:28.7]} 41... Qf8 {[%clk
0:00:11.2]} 42. Qe2 {[%clk 0:00:27.9]} 42... Kh5 {[%clk 0:00:10.5]} 43. h3
{[%clk 0:00:27.7]} 43... Bd8 {[%clk 0:00:06.7]} 44. hxg4+ {[%clk 0:00:27.5]}
44... fxg4 {[%clk 0:00:05]} 45. f5 {[%clk 0:00:27.8]} 45... Bf6 {[%clk
0:00:04.6]} 46. f3 {[%clk 0:00:26.2]} 46... Bxe5 {[%clk 0:00:04]} 47. fxg4+
{[%clk 0:00:25.1]} 47... Kg5 {[%clk 0:00:03.3]} 48. Qxe5 {[%clk 0:00:25.5]}
48... Kxg4 {[%clk 0:00:03.3]} 49. f6 {[%clk 0:00:23.7]} 49... Qd8 {[%clk
0:00:02.8]} 50. Qf5+ {[%clk 0:00:23.3]} 50... Kg3 {[%clk 0:00:02.5]} 51. Qe5+
{[%clk 0:00:22.6]} 51... Kg4 {[%clk 0:00:02.3]} 52. Be2+ {[%clk 0:00:22.9]}
52... Kh3 {[%clk 0:00:02.5]} 53. Qe3# {[%clk 0:00:22.4]} 1-0